bitfinex-derivatives/quotes_SOLF0:USTF0_20250904
["timestamp","ask_amount","ask_price","bid_price","bid_amount"]
[1756983312347,3.79690856,207.95,207.92,126.18]
[1756983312549,7.21,207.95,207.92,7.2]
[1756983313047,7.21,207.95,207.92,126.16]
[1756983315448,0.03601887,207.96,207.93,7.15]
[1756983315948,0.03601887,207.96,207.92,123.2873]
[1756983316150,0.03601887,207.96,207.93,119.0]
[1756983317746,0.03601887,207.96,207.94,7.15]
[1756983317947,0.03601887,207.96,207.93,119.0]
[1756983318344,0.03601887,207.96,207.91,4.3274]
[1756983318544,0.03601887,207.96,207.92,119.0]
[1756983318746,0.03601887,207.96,207.93,7.15]
[1756983318949,0.03601887,207.96,207.92,119.0]
[1756983319246,7.24601887,207.96,207.92,119.0]
[1756983319454,0.03601887,207.96,207.92,119.0]
[1756983319854,0.03601887,207.96,207.93,7.15]
[1756983320349,0.03601887,207.96,207.92,119.0]
[1756983320556,0.03601887,207.96,207.93,7.15]
[1756983321049,7.24601887,207.96,207.93,7.15]
[1756983326562,11.57261887,207.96,207.93,7.15]
[1756983327255,7.21,207.95,207.93,7.15]
[1756983327855,11.5368,207.95,207.92,126.13]
[1756983328047,7.21,207.94,207.92,118.98]
[1756983328448,7.21,207.94,207.9,7.15]
[1756983329154,4.3268,207.95,207.89,118.88]
[1756983329453,4.3268,207.95,207.89,126.03]
[1756983330559,11.5371,207.94,207.9,7.17]
[1756983330755,4.3271,207.94,207.9,7.17]
[1756983330960,7.21,207.93,207.9,7.17]
[1756983331157,7.21,207.95,207.89,118.88]
[1756983331457,6.72780399,207.94,207.89,118.88]
[1756983331662,10.88673872,207.93,207.87,7.17]
[1756983331961,7.21,207.93,207.87,7.17]
[1756983332357,0.03601887,207.96,207.87,7.17]
[1756983332560,3.67650834,207.95,207.87,7.17]
[1756983332857,0.03601887,207.96,207.87,7.17]
[1756983333058,3.67666212,207.95,207.87,7.17]
[1756983333259,0.03601887,207.96,207.87,7.17]
[1756983333855,4.3271,207.94,207.87,7.17]
[1756983335568,0.03601887,207.96,207.87,7.17]
[1756983335863,7.21,207.93,207.87,7.17]
[1756983336260,4.3275,207.92,207.87,7.17]
[1756983336462,10.26061893,207.94,207.85,7.17]
[1756983336857,0.03074796,207.92,207.85,7.17]
[1756983337871,0.03074796,207.92,207.86,7.17]
[1756983339469,0.03074796,207.92,207.88,7.17]
[1756983339769,0.03074796,207.92,207.9,7.17]
[1756983340158,0.03074796,207.92,207.89,118.82]
[1756983340765,0.03074796,207.92,207.9,7.17]
[1756983341362,0.03074796,207.92,207.89,118.82]
[1756983341570,0.03074796,207.92,207.91,7.17]
[1756983343566,0.03074796,207.92,207.91,9.12347909]
[1756983344368,0.03074796,207.92,207.91,7.17]
[1756983344767,0.03074796,207.92,207.91,9.12347909]
[1756983345169,0.03074796,207.92,207.91,127.82347909]
[1756983345674,7.68,208.0,207.92,7.14]
[1756983345972,7.68,208.0,207.89,0.03300546]
[1756983345973,7.68,207.99,207.95,9.09347909]
[1756983346175,1.95347909,208.01,207.96,52.34]
[1756983346363,1.95347909,208.01,207.93,1.95347909]
[1756983346567,7.68,207.96,207.93,67.2]
[1756983346768,7.68,207.96,207.95,0.03276546]
[1756983347171,13.96007909,207.96,207.95,0.03276546]
[1756983348075,14.44007909,207.96,207.95,0.03276546]
[1756983348373,18.12260674,207.96,207.95,0.03276546]
[1756983350270,7.68,207.9,207.87,60.38]
[1756983350674,7.68,207.9,207.87,67.55]
[1756983350871,4.3276,207.91,207.88,7.17]
[1756983351072,12.0076,207.91,207.88,7.17]
[1756983353177,4.3276,207.91,207.87,118.64]
[1756983353379,0.03491905,207.92,207.86,1.95347909]
[1756983353578,7.71491905,207.92,207.88,9.12347909]
[1756983354075,7.71491905,207.92,207.88,127.74347909]
[1756983354282,7.71491905,207.92,207.88,9.12347909]
[1756983354476,7.71491905,207.92,207.88,127.72347909]
[1756983354668,0.03491905,207.92,207.88,127.72347909]
[1756983354870,7.68,207.91,207.88,127.72347909]
[1756983355076,0.03491905,207.92,207.89,7.17]
[1756983355277,0.03491905,207.92,207.88,120.55347909]
[1756983355578,0.03491905,207.92,207.89,7.17]
[1756983356276,0.03491905,207.92,207.88,120.55347909]
[1756983356468,0.03491905,207.92,207.89,7.17]
[1756983356673,0.03491905,207.92,207.88,120.55347909]
[1756983356980,0.03491905,207.92,207.89,7.17]
[1756983357368,0.03491905,207.92,207.88,120.55347909]
[1756983357572,0.03491905,207.92,207.89,7.17]
[1756983357772,7.71491905,207.92,207.89,7.17]
[1756983360173,7.71491905,207.92,207.88,120.43347909]
[1756983360174,0.03491905,207.92,207.88,120.43347909]
[1756983360376,0.03491905,207.92,207.91,7.17]
[1756983361082,0.03491905,207.92,207.91,125.61]
[1756983361282,0.03491905,207.92,207.91,7.17]
[1756983361483,0.03491905,207.92,207.91,125.59]
[1756983362980,0.03491905,207.92,207.91,7.17]
[1756983363373,0.03491905,207.92,207.91,125.55]
[1756983364780,0.03491905,207.92,207.91,7.17]
[1756983364983,0.03491905,207.92,207.91,125.55]
[1756983365283,0.03491905,207.92,207.91,125.51]
[1756983366181,0.03491905,207.92,207.91,7.17]
[1756983366379,0.03491905,207.92,207.91,125.51]
[1756983367379,0.03491905,207.92,207.91,7.17]
[1756983367579,0.03491905,207.92,207.91,61.87]
[1756983367885,0.03491905,207.92,207.91,113.83]
[1756983368481,0.03491905,207.92,207.91,125.47]
[1756983371089,4.3277,207.91,207.87,7.17]
[1756983371387,4.3277,207.91,207.89,9.12347909]
[1756983371588,4.3277,207.91,207.9,125.47]
[1756983372988,0.03491905,207.92,207.91,7.17]
[1756983373187,3.71305479,207.92,207.91,7.17]
[1756983375083,0.03491905,207.92,207.91,7.17]
[1756983376188,3.71401121,207.92,207.91,7.17]
[1756983376588,0.03491905,207.92,207.91,7.17]
[1756983376784,0.03491905,207.92,207.91,9.12347909]
[1756983377490,0.03491905,207.92,207.91,69.74347909]
[1756983378991,0.03491905,207.92,207.91,67.79]
[1756983379286,0.03491905,207.92,207.9,1.95347909]
[1756983379480,3.72271527,207.91,207.89,0.03477181]
[1756983379685,7.56,207.91,207.89,0.03477181]
[1756983380090,0.03491905,207.92,207.89,0.03477181]
[1756983380290,7.56,207.9,207.89,0.03477181]
[1756983380688,11.28243054,207.9,207.89,0.03477181]
[1756983381690,15.00273921,207.9,207.89,0.03477181]
[1756983382987,14.99930276,207.9,207.89,0.03477181]
[1756983383293,16.95278185,207.9,207.89,0.03477181]
[1756983383588,17.43278185,207.9,207.89,0.03477181]
[1756983383793,17.43125389,207.9,207.89,0.03477181]
[1756983390596,16.95125389,207.9,207.89,0.03477181]
[1756983394700,14.9977748,207.9,207.89,0.03477181]
[1756983394900,16.95125389,207.9,207.89,0.03477181]
[1756983395095,13.23590963,207.9,207.89,0.03477181]
[1756983397503,11.28243054,207.9,207.89,0.03477181]
[1756983397702,13.23590963,207.9,207.89,0.03477181]
[1756983398505,11.28243054,207.9,207.89,0.03477181]
[1756983398704,13.23590963,207.9,207.89,0.03477181]
[1756983400007,16.94032816,207.9,207.89,0.03477181]
[1756983401316,13.23590963,207.9,207.89,0.03477181]
[1756983402311,11.28243054,207.9,207.89,0.03477181]
[1756983402511,13.23590963,207.9,207.89,0.03477181]
[1756983403615,11.28243054,207.9,207.89,0.03477181]
[1756983405717,14.98506533,207.9,207.89,0.03477181]
[1756983408520,11.26263479,207.9,207.89,0.03477181]
[1756983408719,7.56,207.9,207.89,0.03477181]
[1756983409315,14.95041576,207.9,207.89,0.03477181]
[1756983410120,11.26290174,207.9,207.89,0.03477181]
[1756983410818,11.24767283,207.9,207.89,0.03477181]
[1756983411018,14.95073404,207.9,207.89,0.03477181]
[1756983411222,14.95073404,207.9,207.77,8.42288115]
[1756983411223,4.3299,207.8,207.79,7.17]
[1756983417730,4.36476195,207.82,207.75,7.21]
[1756983418325,4.3298,207.81,207.75,7.21]
[1756983419429,4.3298,207.81,207.74,121.35521951]
[1756983419430,4.3298,207.81,207.76,118.3]
[1756983419630,4.3298,207.81,207.77,7.21]
[1756983419831,4.3298,207.81,207.75,7.21]
[1756983420026,4.3298,207.81,207.77,7.21]
[1756983420232,4.3298,207.81,207.76,118.3]
[1756983420536,0.03526195,207.82,207.77,10.26521951]
[1756983420727,0.03526195,207.82,207.78,7.21]
[1756983422835,0.03526195,207.82,207.81,7.21]
[1756983425533,0.03526195,207.82,207.81,125.51]
[1756983426036,0.03526195,207.82,207.81,7.21]
[1756983427430,4.3302,207.79,207.75,5.36766164]
[1756983427636,0.03526195,207.82,207.76,7.21]
[1756983428034,4.33,207.8,207.76,7.21]
[1756983428229,12.02,207.8,207.76,7.21]
[1756983428432,12.02,207.8,207.75,118.3]
[1756983428837,12.02,207.8,207.76,7.21]
[1756983429239,12.0202,207.79,207.76,7.21]
[1756983430132,7.69,207.78,207.76,7.21]
[1756983430636,12.0202,207.79,207.76,7.21]
[1756983431239,12.0202,207.79,207.72,7.21]
[1756983431438,12.0202,207.79,207.72,125.51]
[1756983431439,3.73113577,207.78,207.72,125.51]
[1756983431743,12.0202,207.79,207.72,125.51]
[1756983432040,0.03339944,207.77,207.73,7.21]
[1756983432240,7.73,207.76,207.71,118.3]
[1756983432634,12.0608,207.76,207.71,118.3]
[1756983432835,12.0608,207.76,207.72,7.23]
[1756983433738,7.73,207.75,207.72,7.23]
[1756983434843,7.73,207.73,207.71,118.3]
[1756983435134,7.73,207.73,207.68,7.23]
[1756983435438,0.03339944,207.77,207.68,7.23]
[1756983435439,4.3307,207.76,207.69,7.23]
[1756983435835,0.03268721,207.73,207.68,51.76]
[1756983436442,0.03268721,207.73,207.69,7.23]
[1756983436842,0.03268721,207.73,207.68,51.76]
[1756983437538,0.03268721,207.73,207.69,7.2]
[1756983438337,0.03268721,207.73,207.68,51.76]
[1756983438542,0.03268721,207.73,207.69,7.2]
[1756983438740,0.03268721,207.73,207.68,51.76]
[1756983438942,0.03268721,207.73,207.69,7.2]
[1756983439340,0.03268721,207.73,207.68,51.76]
[1756983439543,7.76268721,207.73,207.68,7.2]
[1756983439745,7.76268721,207.73,207.63,5.17138883]
[1756983439945,7.76268721,207.73,207.65,7.2]
[1756983441152,0.03268721,207.73,207.65,7.2]
[1756983441647,0.03268721,207.73,207.67,3.05521951]
[1756983441845,0.03268721,207.73,207.68,7.2]
[1756983444450,0.03268721,207.73,207.67,3.05521951]
[1756983444647,0.03268721,207.73,207.64,7.2]
[1756983445653,0.03268721,207.73,207.64,11.5331]
[1756983446357,0.03268721,207.73,207.67,7.2]
[1756983446851,4.36408721,207.73,207.67,7.2]
[1756983447252,0.03268721,207.73,207.67,7.2]
[1756983447456,7.76268721,207.73,207.64,7.2]
[1756983447756,7.76268721,207.73,207.64,125.52]
[1756983448548,7.76268721,207.73,207.65,7.2]
[1756983448749,0.03268721,207.73,207.65,7.2]
[1756983449957,4.36408721,207.73,207.65,7.2]
[1756983450861,4.3317,207.72,207.65,7.2]
[1756983451362,0.03268721,207.73,207.66,7.2]
[1756983451562,4.36408721,207.73,207.66,7.2]
[1756983455061,4.36408721,207.73,207.66,10.25521951]
[1756983455564,4.36408721,207.73,207.66,3.05521951]
[1756983455765,4.36408721,207.73,207.67,7.2]
[1756983457962,7.73,207.72,207.64,7.2]
[1756983458159,7.73,207.72,207.59,5.36766164]
[1756983458363,7.73,207.72,207.58,10.25521951]
[1756983458364,4.3329,207.66,207.58,10.25521951]
[1756983458561,12.0629,207.66,207.58,7.2]
[1756983458762,0.03311999,207.64,207.58,7.2]
[1756983459260,7.76311999,207.64,207.58,7.2]
[1756983460065,12.09651999,207.64,207.58,7.2]
[1756983461767,0.03311999,207.64,207.58,7.2]
[1756983462469,0.03311999,207.64,207.58,10.25521951]
[1756983462863,0.03311999,207.64,207.59,7.21]
[1756983463272,0.03311999,207.64,207.59,4.3341]
[1756983463570,0.03311999,207.64,207.62,1.9589646]
[1756983463767,0.03311999,207.64,207.63,7.21]
[1756983464368,0.03311999,207.64,207.63,9.1689646]
[1756983466065,0.03311999,207.64,207.63,7.21]
[1756983466267,0.03311999,207.64,207.63,9.1689646]
[1756983466671,0.03311999,207.64,207.59,4.3341]
[1756983466871,0.03311999,207.64,207.63,7.21]
[1756983467768,0.03311999,207.64,207.62,1.9589646]
[1756983468269,7.42311999,207.64,207.56,4.03423315]
[1756983468472,7.42311999,207.64,207.6,9.1689646]
[1756983469070,7.42311999,207.64,207.56,122.6748]
[1756983469071,0.03311999,207.64,207.63,7.21]
[1756983470069,0.03311999,207.64,207.62,1.9589646]
[1756983470265,0.03311999,207.64,207.6,1.9589646]
[1756983470266,7.42311999,207.64,207.6,1.9589646]
[1756983470670,0.03311999,207.64,207.58,7.21]
[1756983470871,7.42311999,207.64,207.61,1.9589646]
[1756983471172,7.42311999,207.64,207.61,9.1689646]
[1756983471974,0.03311999,207.64,207.63,9.1689646]
[1756983472274,0.03311999,207.64,207.61,1.9589646]
[1756983472475,0.03311999,207.64,207.61,9.1689646]
[1756983474975,0.03311999,207.64,207.61,7.21]
[1756983475274,0.03311999,207.64,207.62,1.9589646]
[1756983476170,0.03311999,207.64,207.61,7.21]
[1756983476370,0.03311999,207.64,207.62,1.9589646]
[1756983476571,0.03311999,207.64,207.61,9.1689646]
[1756983476767,0.03311999,207.64,207.57,7.21]
[1756983476768,7.39,207.63,207.57,7.21]
[1756983476973,7.39,207.63,207.59,1.9589646]
[1756983477869,7.39,207.63,207.59,9.1689646]
[1756983478068,4.3335,207.63,207.59,9.1689646]
[1756983478267,7.39,207.62,207.59,1.9589646]
[1756983479070,7.39,207.62,207.56,7.21]
[1756983479271,7.39,207.62,207.59,1.9589646]
[1756983480271,4.3339,207.61,207.57,1.9589646]
[1756983480471,7.39,207.6,207.57,9.1689646]
[1756983480869,4.3334,207.63,207.57,1.9589646]
[1756983481073,0.03311999,207.64,207.57,1.9589646]
[1756983481074,0.03311999,207.64,207.62,7.21]
[1756983481269,0.03311999,207.64,207.57,4.03423315]
[1756983481473,0.03311999,207.64,207.63,1.9589646]
[1756983482375,7.42311999,207.64,207.63,1.9589646]
[1756983482576,7.42311999,207.64,207.62,1.9589646]
[1756983483172,0.03311999,207.64,207.62,9.1689646]
[1756983483372,0.03311999,207.64,207.63,7.21]
[1756983484373,0.03311999,207.64,207.63,1.9589646]
[1756983485876,0.03311999,207.64,207.63,9.1689646]
[1756983487380,0.03311999,207.64,207.63,7.21]
[1756983487680,0.03311999,207.64,207.63,9.1689646]
[1756983490279,0.03311999,207.64,207.62,1.9589646]
[1756983490580,0.03311999,207.64,207.62,7.21]
[1756983492281,0.03311999,207.64,207.62,7.19]
[1756983494279,0.03311999,207.64,207.63,9.1489646]
[1756983494877,0.03311999,207.64,207.63,7.19]
[1756983495081,0.03311999,207.64,207.63,1.9589646]
[1756983495276,0.03311999,207.64,207.58,4.03423315]
[1756983495474,0.03311999,207.64,207.62,9.1489646]
[1756983496179,0.03311999,207.64,207.63,7.19]
[1756983496575,7.56311999,207.64,207.59,7.19]
[1756983496781,0.03311999,207.64,207.61,7.19]
[1756983496974,0.03311999,207.64,207.6,1.9589646]
[1756983497173,0.03311999,207.64,207.59,7.19]
[1756983497378,0.03311999,207.64,207.62,7.19]
[1756983501177,7.56311999,207.64,207.61,1.9589646]
[1756983501582,7.56311999,207.64,207.6,9.1489646]
[1756983501781,0.03311999,207.64,207.6,9.1489646]
[1756983501988,7.56311999,207.64,207.6,9.1489646]
[1756983502379,7.56311999,207.64,207.6,13.18319775]
[1756983502587,3.72293504,207.63,207.61,7.19]
[1756983502789,7.56311999,207.64,207.61,7.19]
[1756983503092,11.25253922,207.63,207.6,13.18319775]
[1756983503283,7.53,207.63,207.6,13.18319775]
[1756983503986,3.72264122,207.62,207.6,9.1489646]
[1756983504290,7.53,207.63,207.6,9.1489646]
[1756983504484,11.25223354,207.62,207.59,4.03423315]
[1756983504678,3.72204584,207.61,207.6,7.19]
[1756983504882,3.72204584,207.61,207.58,9.1489646]
[1756983505082,7.53,207.62,207.59,7.19]
[1756983505282,3.72204584,207.61,207.59,7.19]
[1756983505481,7.53,207.62,207.59,7.19]
[1756983505678,3.72168864,207.61,207.57,11.22423315]
[1756983505878,1.99208459,207.64,207.57,11.22423315]
[1756983506084,14.89155959,207.63,207.57,7.19]
[1756983506283,3.72156889,207.62,207.57,7.19]
[1756983506484,7.53,207.6,207.57,7.19]
[1756983507183,7.53,207.58,207.56,1.9589646]
[1756983507384,7.53,207.58,207.56,9.1489646]
[1756983508287,7.53,207.58,207.56,7.19]
[1756983508486,0.03226399,207.59,207.56,7.19]
[1756983509190,7.56226399,207.59,207.56,7.19]
[1756983509987,0.03226399,207.59,207.58,7.19]
[1756983511386,0.03226399,207.59,207.58,9.1489646]
[1756983511586,0.03226399,207.59,207.58,13.18319775]
[1756983513093,0.03226399,207.59,207.58,9.1489646]
[1756983515297,0.03226399,207.59,207.58,7.19]
[1756983515491,0.03226399,207.59,207.58,9.1489646]
[1756983516688,7.53,207.67,207.6,4.3339]
[1756983516887,7.53,207.67,207.64,7.19]
[1756983517094,1.9589646,207.7,207.63,1.9589646]
[1756983517390,7.53,207.69,207.63,1.9589646]
[1756983517790,4.3325,207.68,207.63,1.9589646]
[1756983517992,7.53,207.67,207.63,1.9589646]
[1756983518187,7.53,207.67,207.62,1.9589646]
[1756983518593,4.36524191,207.68,207.62,1.9589646]
[1756983518792,11.89524191,207.68,207.62,1.9589646]
[1756983519793,11.89524191,207.68,207.61,7.19]
[1756983519994,7.53,207.67,207.64,7.19]
[1756983521201,4.36524191,207.68,207.63,1.9589646]
[1756983521993,7.53,207.67,207.63,1.9589646]
[1756983522196,7.79,207.67,207.63,1.9589646]
[1756983522700,7.82274191,207.68,207.63,1.9589646]
[1756983523094,7.79,207.67,207.64,7.21]
[1756983523599,7.79,207.67,207.63,1.9589646]
[1756983523798,7.79,207.67,207.64,7.21]
[1756983524399,7.79,207.67,207.64,9.1689646]
[1756983525097,7.79,207.67,207.64,1.9589646]
[1756983525396,7.79,207.67,207.61,7.21]
[1756983531510,7.79,207.67,207.61,11.26266471]
[1756983532007,7.79,207.67,207.61,7.21]
[1756983532206,7.79,207.67,207.61,11.26266471]
[1756983533709,7.79,207.67,207.61,7.21]
[1756983537212,0.03274191,207.68,207.63,3.06079004]
[1756983537512,0.03274191,207.68,207.63,7.11345475]
[1756983537906,7.82274191,207.68,207.63,7.11345475]
[1756983538311,7.82274191,207.68,207.64,7.21]
[1756983538806,7.82274191,207.68,207.63,7.11345475]
[1756983539011,7.82274191,207.68,207.65,7.21]
[1756983539411,0.03274191,207.68,207.63,11.44675475]
[1756983540213,7.82274191,207.68,207.64,7.21]
[1756983541215,7.82274191,207.68,207.63,7.39409004]
[1756983541411,7.82274191,207.68,207.64,7.21]
[1756983542014,7.79,207.67,207.64,7.21]
[1756983544019,7.79,207.67,207.62,11.44695475]
[1756983544220,0.03274191,207.68,207.63,7.21]
[1756983544515,7.79,207.67,207.61,4.05266471]
[1756983544714,7.79,207.67,207.59,11.26266471]
[1756983544922,3.80908079,207.66,207.6,4.05266471]
[1756983545123,7.79,207.64,207.61,7.21]
[1756983548218,4.3327,207.67,207.61,7.21]
[1756983548415,3.8093563,207.66,207.61,7.21]
[1756983548620,7.79,207.64,207.61,7.21]
[1756983548815,4.3327,207.67,207.61,7.21]
[1756983549018,8.1423364,207.66,207.59,4.05266471]
[1756983549218,11.5994364,207.65,207.59,4.05266471]
[1756983549419,3.8094364,207.64,207.59,11.26266471]
[1756983549620,7.79,207.65,207.59,11.26266471]
[1756983549924,7.79,207.63,207.6,7.21]
[1756983550315,0.03555918,207.64,207.59,4.05266471]
[1756983550622,7.79,207.63,207.59,4.05266471]
[1756983550821,0.03555918,207.64,207.59,11.26266471]
[1756983551024,7.79,207.63,207.59,4.05266471]
[1756983551322,7.79,207.63,207.6,7.21]
[1756983552418,7.4,207.63,207.6,7.21]
[1756983553124,0.03555918,207.64,207.59,11.26266471]
[1756983553319,7.4,207.62,207.59,11.26266471]
[1756983555017,0.03555918,207.64,207.6,7.21]
[1756983555224,3.81363252,207.63,207.61,7.21]
[1756983555421,0.03555918,207.64,207.61,7.21]
[1756983555622,3.81487333,207.63,207.61,7.21]
[1756983555812,0.03555918,207.64,207.6,8.38656471]
[1756983556018,3.81487231,207.63,207.61,7.21]
[1756983556214,0.03555918,207.64,207.62,7.21]
[1756983556418,3.8156937,207.63,207.62,7.21]
[1756983558925,3.81590868,207.63,207.62,7.21]
[1756983562825,3.81639753,207.63,207.62,7.21]
[1756983563933,0.03555918,207.64,207.61,8.38636471]
[1756983564133,0.03555918,207.64,207.62,7.21]
[1756983564533,0.03555918,207.64,207.61,8.38636471]
[1756983564733,0.03555918,207.64,207.62,7.21]
[1756983565334,0.03555918,207.64,207.61,8.38636471]
[1756983565536,0.03555918,207.64,207.62,7.21]
[1756983565832,0.03555918,207.64,207.61,4.05266471]
[1756983566033,7.4,207.63,207.61,4.05266471]
[1756983566336,7.4,207.63,207.56,57.59149247]
[1756983566337,7.4,207.63,207.6,11.26266471]
[1756983566635,7.4,207.63,207.61,11.26266471]
[1756983567029,0.03555918,207.64,207.62,7.21]
[1756983568530,0.03555918,207.64,207.61,4.05266471]
[1756983568736,0.03555918,207.64,207.63,7.21]
[1756983569737,0.03555918,207.64,207.63,14.32345475]
[1756983569928,0.03555918,207.64,207.63,10.27079004]
[1756983570438,0.03555918,207.64,207.63,129.37079004]
[1756983571437,0.03555918,207.64,207.63,7.21]
[1756983572535,0.03555918,207.64,207.62,14.3263699]
[1756983572926,0.03555918,207.64,207.62,11.26557986]
[1756983573838,0.03555918,207.64,207.62,7.21]
[1756983576142,0.03555918,207.64,207.63,7.21]
[1756983584641,0.03555918,207.64,207.62,11.4498699]
[1756983584642,0.03555918,207.64,207.59,5.36766164]
[1756983584837,0.03555918,207.64,207.55,7.19]
[1756983584838,7.62,207.63,207.55,7.19]
[1756983585042,0.03555918,207.64,207.55,7.19]
[1756983585043,7.62,207.61,207.56,120.72]
[1756983585237,7.62,207.63,207.54,7.19]
[1756983585434,3.60445175,207.62,207.55,122.28]
[1756983585646,7.62,207.63,207.55,122.28]
[1756983585944,0.03218017,207.61,207.56,7.19]
[1756983586142,11.33324284,207.6,207.57,7.19]
[1756983586345,7.62,207.6,207.57,7.19]
[1756983586546,0.03218017,207.61,207.58,122.26]
[1756983586739,7.62,207.59,207.58,122.26]
[1756983587242,7.62,207.59,207.58,122.24]
[1756983587545,7.62,207.59,207.57,122.22]
[1756983588044,7.62,207.59,207.57,122.2]
[1756983588242,0.03218017,207.61,207.51,310.14]
[1756983588440,3.71139116,207.6,207.54,7.19]
[1756983588744,11.33139116,207.59,207.55,131.81032692]
[1756983589039,7.62,207.59,207.55,131.81032692]
[1756983589447,7.62,207.59,207.55,129.85]
[1756983589647,7.62,207.59,207.55,131.81032692]
[1756983589849,0.03218017,207.61,207.55,124.62032692]
[1756983590049,11.33060707,207.6,207.56,7.19]
[1756983590250,7.62,207.6,207.57,7.19]
[1756983590450,7.62,207.6,207.58,123.06]
[1756983590850,7.62,207.6,207.52,7.19]
[1756983591149,7.62,207.6,207.56,7.19]
[1756983591344,7.62,207.6,207.57,123.5]
[1756983591650,7.62,207.6,207.55,1.96032692]
[1756983591651,7.62,207.6,207.58,123.5]
[1756983591852,7.62,207.6,207.56,1.96032692]
[1756983592047,7.62,207.6,207.57,130.67]
[1756983592355,7.62,207.6,207.58,123.46]
[1756983593549,7.62,207.6,207.58,123.44]
[1756983594147,0.03218017,207.61,207.51,314.4758]
[1756983594347,9.61250709,207.61,207.54,1.96032692]
[1756983594553,9.61250709,207.61,207.55,130.77]
[1756983594750,7.65218017,207.61,207.55,130.77]
[1756983595657,7.65218017,207.61,207.55,7.19]
[1756983595955,7.62,207.6,207.57,7.19]
[1756983596156,7.62,207.6,207.58,123.5]
[1756983596958,7.62,207.6,207.58,130.69]
[1756983597155,7.62,207.6,207.59,123.46]
[1756983597351,7.62,207.6,207.58,7.19]
[1756983597858,7.62,207.6,207.59,123.38]
[1756983598257,3.96544547,207.6,207.59,123.38]
[1756983598652,3.96544547,207.6,207.58,7.19]
[1756983598853,7.65218017,207.61,207.59,123.38]
[1756983599058,3.96539499,207.6,207.54,7.19]
[1756983599253,11.58539499,207.59,207.56,7.19]
[1756983599453,3.96539499,207.58,207.55,123.32]
[1756983599657,7.65218017,207.61,207.54,1.96032692]
[1756983599960,11.58508093,207.6,207.56,7.19]
[1756983600163,3.96508093,207.59,207.57,7.19]
[1756983600361,3.96508093,207.58,207.57,7.19]
[1756983600557,3.96508093,207.58,207.57,130.57]
[1756983600960,3.96508093,207.58,207.57,7.19]
[1756983601158,3.96508093,207.58,207.57,130.55]
[1756983601454,11.58508093,207.58,207.55,1.96032692]
[1756983601654,3.9623464,207.57,207.55,7.19]
[1756983601862,7.62,207.58,207.56,123.32]
[1756983602060,7.62,207.58,207.55,7.19]
[1756983602061,3.96188074,207.57,207.55,7.19]
[1756983602263,0.03097026,207.58,207.55,7.19]
[1756983602454,3.96127355,207.57,207.51,310.14]
[1756983602656,3.96122006,207.56,207.52,130.45]
[1756983602858,1.99129718,207.58,207.52,123.26]
[1756983603059,9.58032692,207.56,207.52,7.19]
[1756983603261,7.62,207.54,207.41,7.19]
[1756983603468,7.62,207.54,207.43,7.19]
[1756983603762,7.62,207.55,207.48,7.19]
[1756983603958,0.03079462,207.51,207.49,7.19]
[1756983604457,0.03079462,207.51,207.4,318.25149247]
[1756983604458,7.65079462,207.51,207.44,9.15032692]
[1756983604661,7.65079462,207.51,207.47,7.19]
[1756983604860,7.65079462,207.51,207.45,81.58]
[1756983604861,7.62,207.51,207.45,81.58]
[1756983605062,7.62,207.51,207.47,7.19]
[1756983605262,7.65426733,207.51,207.47,7.19]
[1756983605463,7.65426733,207.51,207.48,74.34]
[1756983605665,7.62,207.5,207.41,7.19]
[1756983605868,0.03426733,207.51,207.37,7.19]
[1756983606163,0.03426733,207.51,207.36,310.22]
[1756983606164,7.62,207.46,207.39,1.96032692]
[1756983606366,7.62,207.46,207.38,124.28]